bitfinex/quotes_SOLUSD_20251126
["timestamp","ask_amount","ask_price","bid_price","bid_amount"]
[1764131332065,104.08,138.56,138.54,0.66]
[1764131333084,103.4,138.55,138.53,24.18737082]
[1764131333261,103.4,138.55,138.53,27.3741814]
[1764131333583,103.4,138.55,138.53,20.15567458]
[1764131334059,104.08,138.55,138.53,20.15567458]
[1764131334269,103.4,138.55,138.54,0.66]
[1764131334458,103.4,138.55,138.53,20.15567458]
[1764131337580,53.39704909,138.58,138.54,15.97891707]
[1764131337581,43.000968,138.58,138.54,15.97891707]
[1764131337782,43.000968,138.58,138.56,3.18681058]
[1764131337958,43.680968,138.58,138.56,3.18]
[1764131338155,0.68,138.57,138.54,3.98897215]
[1764131338359,0.68,138.57,138.54,3.84]
[1764131338764,3.86681058,138.57,138.53,16.308864]
[1764131338962,103.4,138.56,138.53,30.55424799]
[1764131339184,104.08,138.56,138.53,30.55424799]
[1764131342980,104.08,138.56,138.54,0.69]
[1764131345590,104.08,138.56,138.53,30.58424799]
[1764131347472,0.7,138.55,138.53,30.58424799]
[1764131349194,0.7,138.55,138.53,27.39743741]
[1764131349496,104.1,138.56,138.53,27.39743741]
[1764131349878,0.7,138.55,138.53,27.39743741]
[1764131350074,104.1,138.56,138.53,27.39743741]
[1764131350397,104.1,138.56,138.54,0.69]
[1764131350894,104.1,138.56,138.53,29.89424799]
[1764131351097,104.1,138.56,138.53,30.58424799]
[1764131352092,104.1,138.56,138.54,0.69]
[1764131352793,104.1,138.56,138.53,30.58424799]
[1764131353212,104.1,138.56,138.54,0.69]
[1764131353696,104.1,138.56,138.53,29.89424799]
[1764131353900,104.1,138.56,138.54,0.72]
[1764131354102,104.1,138.56,138.54,3.90681058]
[1764131354687,104.1,138.56,138.54,11.12465655]
[1764131355289,104.1,138.56,138.54,7.93784597]
[1764131355587,104.1,138.56,138.53,30.61419258]
[1764131358305,104.1,138.56,138.53,29.89419258]
[1764131358496,104.1,138.56,138.53,30.61419258]
[1764131362095,104.1,138.56,138.54,7.93780262]
[1764131362286,104.1,138.56,138.54,10.4046132]
[1764131362489,104.1,138.56,138.54,7.21780262]
[1764131363791,103.4,138.56,138.54,7.21780262]
[1764131363997,103.4,138.56,138.54,11.1246132]
[1764131364397,104.06,138.56,138.54,11.1246132]
[1764131365220,104.06,138.56,138.54,7.21780262]
[1764131367520,104.06,138.56,138.54,7.93780262]
[1764131369520,103.4,138.56,138.54,7.21780262]
[1764131369822,103.4,138.56,138.55,12.85210649]
[1764131371800,103.4,138.56,138.55,12.13210649]
[1764131372121,104.06,138.56,138.53,16.45102557]
[1764131372321,0.66,138.55,138.54,16.308864]
[1764131374724,103.4,138.56,138.54,16.308864]
[1764131374926,0.66,138.6,138.55,16.03891707]
[1764131375111,0.66,138.6,138.56,3.18681058]
[1764131375705,0.66,138.6,138.56,3.90681058]
[1764131376030,3.84681058,138.6,138.56,0.72]
[1764131376407,0.66,138.59,138.56,0.72]
[1764131376806,0.66,138.59,138.56,7.93696894]
[1764131381007,2.039572,138.58,138.54,16.308864]
[1764131381221,2.039572,138.57,138.54,16.308864]
[1764131381426,103.4,138.56,138.54,16.308864]
[1764131381609,104.06,138.56,138.54,16.308864]
[1764131383820,103.4,138.56,138.54,16.308864]
[1764131384118,104.1,138.56,138.54,16.308864]
[1764131385328,104.1,138.56,138.54,23.52688191]
[1764131385703,104.1,138.56,138.54,16.308864]
[1764131386109,103.4,138.56,138.55,0.66]
[1764131386316,103.4,138.56,138.55,11.65167849]
[1764131386716,103.4,138.56,138.55,9.61210649]
[1764131386926,103.4,138.56,138.55,11.65167849]
[1764131387633,103.4,138.56,138.55,18.86928946]
[1764131388831,0.7,138.58,138.56,8.95210649]
[1764131389011,2.039572,138.63,138.58,8.95210649]
[1764131389215,103.4,138.66,138.59,2.699572]
[1764131389216,0.7,138.62,138.59,2.699572]
[1764131390927,0.7,138.62,138.59,9.91473979]
[1764131391322,0.7,138.62,138.57,23.52529657]
[1764131391527,0.7,138.63,138.6,8.80994492]
[1764131391813,0.7,138.63,138.6,10.84951692]
[1764131392014,0.7,138.63,138.6,11.50951692]
[1764131392221,0.7,138.63,138.6,9.46994492]
[1764131392422,0.7,138.63,138.6,8.80994492]
[1764131393235,0.7,138.63,138.6,16.02483411]
[1764131393432,0.7,138.63,138.6,16.68483411]
[1764131394534,0.7,138.63,138.6,9.46994492]
[1764131394742,0.7,138.63,138.6,16.68479593]
[1764131394928,0.7,138.63,138.6,18.72436793]
[1764131396539,2.739572,138.63,138.59,10.39537024]
[1764131396718,0.7,138.62,138.59,10.39537024]
[1764131397236,0.7,138.62,138.57,0.14216157]
[1764131397237,2.039572,138.61,138.57,0.14216157]
[1764131397416,2.039572,138.61,138.57,12.13210649]
[1764131397621,0.7,138.62,138.58,2.699572]
[1764131397925,0.7,138.62,138.59,0.14216157]
[1764131398250,0.7,138.62,138.59,0.80216157]
[1764131398443,0.7,138.62,138.59,8.01746162]
[1764131398823,0.7,138.62,138.59,10.05703362]
[1764131400236,0.7,138.62,138.59,9.39703362]
[1764131400444,0.7,138.62,138.6,0.66]
[1764131400743,0.7,138.62,138.59,10.05703362]
[1764131401645,0.7,138.62,138.59,2.85173357]
[1764131401820,0.7,138.62,138.6,0.67]
[1764131402145,0.7,138.62,138.59,2.85173357]
[1764131402314,0.7,138.62,138.59,0.81216157]
[1764131402521,2.039572,138.6,138.57,16.308864]
[1764131402740,105.439572,138.61,138.57,16.308864]
[1764131402935,0.68,138.6,138.57,16.978864]
[1764131403541,0.68,138.6,138.57,25.56497493]
[1764131403742,0.68,138.6,138.57,26.23497493]
[1764131404448,0.68,138.6,138.57,19.018436]
[1764131404622,0.68,138.6,138.57,16.978864]
[1764131409349,0.68,138.6,138.57,16.308864]
[1764131409647,2.719572,138.6,138.57,16.308864]
[1764131410125,0.68,138.59,138.57,16.308864]
[1764131410330,0.68,138.59,138.57,16.978864]
[1764131412426,103.4,138.61,138.58,0.67]
[1764131412619,120.378864,138.61,138.58,0.67]
[1764131412824,120.378864,138.61,138.58,2.709572]
[1764131413038,121.058864,138.61,138.58,0.67]
[1764131413332,104.08,138.61,138.58,0.67]
[1764131414449,104.08,138.61,138.58,7.88599819]
[1764131414882,3.18,138.62,138.59,0.14216157]
[1764131415160,0.72,138.64,138.6,8.80994492]
[1764131415368,0.72,138.63,138.6,8.80994492]
[1764131415529,0.72,138.63,138.6,9.51994492]
[1764131415730,0.72,138.63,138.6,8.80994492]
[1764131416046,2.039572,138.61,138.57,0.71]
[1764131416426,0.72,138.6,138.57,0.71]
[1764131416835,2.759572,138.6,138.57,0.71]
[1764131417042,0.72,138.6,138.57,0.71]
[1764131417830,0.72,138.6,138.57,8.95210649]
[1764131418140,0.72,138.6,138.57,9.66210649]
[1764131418850,0.72,138.6,138.55,28.7459182]
[1764131418851,2.039572,138.59,138.54,11.10798823]
[1764131419040,2.039572,138.59,138.55,8.95210649]
[1764131419241,0.72,138.58,138.55,9.66210649]
[1764131421639,2.759572,138.58,138.54,19.488864]
[1764131421844,2.759572,138.58,138.54,16.308864]
[1764131422045,0.72,138.57,138.54,17.018864]
[1764131422750,0.72,138.57,138.54,16.308864]
[1764131423051,0.72,138.57,138.54,17.018864]
[1764131426757,103.4,138.56,138.53,8.80994492]
[1764131426964,103.4,138.55,138.53,16.308864]
[1764131427464,103.4,138.55,138.52,9.66210649]
[1764131427465,106.159572,138.55,138.52,0.71]
[1764131427671,0.72,138.54,138.51,19.488864]
[1764131427859,0.72,138.54,138.52,0.71]
[1764131428673,106.159572,138.55,138.52,0.71]
[1764131430571,104.12,138.55,138.52,0.71]
[1764131436163,103.4,138.55,138.52,0.71]
[1764131436363,104.12,138.55,138.52,0.71]
[1764131436566,0.72,138.54,138.52,0.71]
[1764131436775,0.72,138.54,138.5,32.33885381]
[1764131437079,103.4,138.53,138.51,0.71]
[1764131437445,104.12,138.53,138.51,0.71]
[1764131438768,103.4,138.53,138.51,0.71]
[1764131441575,103.4,138.53,138.51,7.9296461]
[1764131441983,103.4,138.53,138.52,0.71]
[1764131444189,103.4,138.53,138.52,16.88128061]
[1764131449304,7.21637787,138.58,138.52,16.88128061]
[1764131449305,103.4,138.59,138.53,16.308864]
[1764131449485,104.12,138.59,138.55,3.18913407]
[1764131449979,104.12,138.59,138.55,3.88913407]
[1764131449980,0.72,138.58,138.55,3.88913407]
[1764131450387,0.72,138.58,138.54,12.83210649]
[1764131450772,0.72,138.58,138.55,0.7]
[1764131453589,3.90913407,138.58,138.55,0.7]
[1764131453778,0.72,138.57,138.55,0.7]
[1764131457601,6.36913407,138.56,138.52,25.11880892]
[1764131457806,3.18913407,138.55,138.52,25.81880892]
[1764131457992,3.90913407,138.55,138.52,25.81880892]
[1764131459505,3.90913407,138.55,138.52,33.03796688]
[1764131462594,3.90913407,138.55,138.53,0.65]
[1764131463490,0.72,138.55,138.53,0.65]
[1764131463690,0.72,138.55,138.52,32.98796688]
[1764131464491,0.72,138.55,138.49,18.25110009]
[1764131464492,3.18,138.54,138.49,9.00994492]
[1764131464814,103.4,138.53,138.5,0.65]
[1764131465123,104.12,138.53,138.5,0.65]
[1764131466425,104.12,138.53,138.5,7.87019781]
[1764131466917,107.30913407,138.53,138.5,0.65]
[1764131467416,0.72,138.52,138.5,0.65]
[1764131467632,0.72,138.52,138.49,0.2]
[1764131467633,106.58913407,138.51,138.49,0.2]
[1764131467924,103.4,138.51,138.49,0.85]
[1764131468120,104.12,138.51,138.49,0.85]
[1764131470119,104.12,138.51,138.49,0.2]
[1764131470604,0.72,138.5,138.49,0.2]
[1764131472316,103.4,138.51,138.49,4.03913407]
[1764131472491,103.4,138.51,138.49,0.85]
[1764131472914,104.12,138.51,138.49,0.2]
[1764131474823,107.30913407,138.51,138.49,0.2]
[1764131477900,104.12,138.51,138.49,0.2]
[1764131478100,103.4,138.51,138.49,0.92]
[1764131478302,104.12,138.51,138.49,0.92]
[1764131478517,104.12,138.51,138.49,0.2]
[1764131484331,3.9,138.5,138.46,0.2]
[1764131484639,7.08913407,138.5,138.46,0.92]
[1764131484817,0.72,138.49,138.46,0.92]
[1764131485530,3.18,138.5,138.46,7.42213596]
[1764131485729,3.9,138.5,138.47,0.72]
[1764131486035,3.9,138.5,138.46,8.14213596]
[1764131486036,0.72,138.49,138.46,8.14213596]
[1764131487035,0.72,138.49,138.46,7.42213596]
[1764131487213,3.9,138.5,138.47,0.72]
[1764131487624,0.72,138.49,138.46,7.42213596]
[1764131487825,0.72,138.49,138.46,8.14213596]
[1764131488219,0.72,138.49,138.46,0.92]
[1764131490438,104.12,138.49,138.46,0.92]
[1764131492814,107.30913407,138.49,138.46,0.92]
[1764131493014,3.90913407,138.48,138.46,0.2]
[1764131494012,0.72,138.48,138.46,0.2]
[1764131494213,3.90913407,138.48,138.46,0.2]
[1764131494441,0.72,138.48,138.46,0.2]
[1764131494740,104.12,138.49,138.46,17.09422021]
[1764131495320,0.72,138.48,138.46,16.37422021]
[1764131495525,0.72,138.48,138.46,9.87210649]
[1764131495913,103.4,138.49,138.46,9.87210649]
[1764131496117,104.12,138.49,138.46,9.87210649]
[1764131497824,103.4,138.49,138.46,9.87210649]
[1764131498039,0.72,138.48,138.46,9.87210649]
[1764131498542,103.4,138.49,138.46,9.87210649]
[1764131498843,104.12,138.49,138.46,9.87210649]
[1764131499241,103.4,138.49,138.46,9.15210649]
[1764131499432,103.4,138.49,138.47,2.76273542]
[1764131499839,103.4,138.49,138.48,0.72]
[1764131500945,103.4,138.54,138.49,8.95210649]
[1764131501151,116.45210649,138.54,138.49,10.99484191]
[1764131501441,3.9,138.54,138.51,8.95210649]
[1764131501649,0.72,138.55,138.51,8.95210649]
[1764131501825,0.72,138.55,138.52,0.72]
[1764131503235,5.94273542,138.56,138.52,0.72]
[1764131503651,13.75757733,138.57,138.52,9.98167097]
[1764131503829,13.75757733,138.57,138.53,8.95210649]
[1764131503830,2.76273542,138.57,138.53,8.95210649]
[1764131504029,2.76273542,138.57,138.53,9.67210649]
[1764131504229,2.76273542,138.57,138.54,0.72]
[1764131505335,0.72,138.57,138.54,0.72]
[1764131505537,2.04273542,138.57,138.54,0.72]
[1764131505841,0.69,138.57,138.54,0.72]
[1764131506846,2.73273542,138.57,138.53,20.07053162]
[1764131507029,2.73273542,138.57,138.54,0.72]
[1764131508637,0.69,138.57,138.54,0.72]
[1764131508836,0.69,138.57,138.54,7.93811835]
[1764131509042,124.79326704,138.59,138.55,0.72]
[1764131509226,105.44273542,138.59,138.55,0.72]
[1764131509955,103.4,138.59,138.56,8.95210649]
[1764131510742,103.4,138.59,138.57,0.72]
[1764131511748,106.13273542,138.59,138.56,9.67210649]
[1764131511941,105.44273542,138.59,138.55,7.21714082]
[1764131512130,2.73273542,138.58,138.55,7.93714082]
[1764131513735,0.69,138.58,138.55,7.93714082]
[1764131517855,106.13273542,138.59,138.56,0.72]
[1764131518049,0.69,138.58,138.55,7.93714082]
[1764131518955,0.69,138.58,138.56,0.72]
[1764131521365,14.17484191,138.6,138.57,0.14216157]
[1764131521670,0.69,138.63,138.6,8.95210649]
[1764131522169,2.73273542,138.63,138.59,16.308864]
[1764131522339,2.04273542,138.6,138.58,21.68491813]
[1764131522540,2.04273542,138.6,138.57,19.488864]
[1764131522734,2.75273542,138.6,138.57,20.198864]
[1764131523240,0.71,138.6,138.57,27.41507808]
[1764131523450,0.71,138.6,138.58,0.71]
[1764131523657,2.04273542,138.61,138.58,0.71]
[1764131523859,2.75273542,138.61,138.58,0.71]
[1764131524356,0.71,138.6,138.57,17.018864]
[1764131524661,2.75273542,138.61,138.58,0.71]
[1764131525160,2.04273542,138.61,138.58,0.71]
[1764131525368,2.75273542,138.61,138.58,0.71]
[1764131525665,0.71,138.61,138.58,0.71]
[1764131526044,2.75273542,138.63,138.59,8.95210649]
[1764131526344,2.04273542,138.66,138.61,16.45102557]
[1764131526550,2.04273542,138.65,138.61,16.45102557]
[1764131526743,2.04273542,138.65,138.62,0.71]
[1764131526744,2.75273542,138.65,138.62,0.71]
[1764131527065,2.04273542,138.63,138.59,25.82880892]
[1764131527278,2.04273542,138.62,138.59,25.11880892]
[1764131527465,2.04273542,138.62,138.59,8.80994492]
[1764131527767,103.4,138.66,138.57,35.93988957]
[1764131527768,2.04273542,138.6,138.57,35.93988957]
[1764131528147,111.32285491,138.63,138.58,9.66210649]
[1764131528338,2.04273542,138.62,138.58,9.66210649]
[1764131528668,2.75273542,138.62,138.59,0.71]
[1764131530148,2.04273542,138.62,138.58,9.66210649]
[1764131530366,0.71,138.61,138.58,9.66210649]
[1764131531071,2.75273542,138.61,138.57,16.308864]
[1764131531251,2.75273542,138.61,138.57,20.198864]
[1764131531562,0.71,138.6,138.57,20.198864]
[1764131531768,2.75273542,138.61,138.58,0.71]
[1764131531939,0.71,138.61,138.58,0.71]
[1764131532141,2.75273542,138.61,138.58,0.71]
[1764131532843,0.71,138.6,138.57,27.41541791]
[1764131533060,2.75273542,138.61,138.58,0.71]
[1764131533572,2.04273542,138.61,138.58,0.71]
[1764131534149,2.70273542,138.61,138.58,0.71]
[1764131535262,2.70273542,138.6,138.57,8.95210649]
[1764131535659,0.66,138.59,138.57,8.95210649]
[1764131536349,0.66,138.59,138.56,11.07693127]
[1764131536761,2.04273542,138.6,138.56,11.07693127]
[1764131537069,0.66,138.59,138.56,11.07693127]
[1764131538268,0.66,138.59,138.56,10.39693127]
[1764131538474,0.66,138.6,138.57,0.68]
[1764131539077,0.66,138.59,138.56,11.07693127]
[1764131539271,0.66,138.61,138.56,10.39693127]
[1764131539475,0.66,138.61,138.57,0.68]
[1764131539868,7.21400494,138.62,138.57,0.68]
[1764131540073,127.79392518,138.63,138.58,8.95210649]
[1764131540251,103.4,138.62,138.58,8.95210649]
[1764131540453,103.4,138.62,138.59,0.68]
[1764131541051,104.06,138.62,138.59,0.68]
[1764131542174,104.06,138.62,138.59,3.86]
[1764131545389,106.10273542,138.62,138.59,3.86]
[1764131546893,2.70273542,138.61,138.56,8.95210649]
[1764131547065,2.04273542,138.59,138.56,11.98994492]
[1764131547266,2.04273542,138.59,138.56,12.66994492]
[1764131547482,2.70273542,138.59,138.56,12.66994492]
[1764131547765,0.66,138.59,138.56,12.66994492]
[1764131547971,0.66,138.59,138.56,9.48994492]
[1764131548471,0.66,138.59,138.56,16.70699396]
[1764131548985,2.70273542,138.59,138.55,24.20629205]
[1764131549185,0.66,138.59,138.56,0.68]
[1764131549393,2.70273542,138.59,138.56,0.68]
[1764131550078,2.70273542,138.58,138.55,20.168864]
[1764131550467,2.70273542,138.59,138.56,0.68]
[1764131550667,104.06,138.6,138.56,0.68]
[1764131550888,0.66,138.59,138.56,0.68]
[1764131551077,2.70273542,138.59,138.56,0.68]
[1764131551895,2.70273542,138.59,138.55,26.70639336]
[1764131551896,104.06,138.58,138.55,16.308864]
[1764131552116,10.2136771,138.56,138.49,0.68]
[1764131552316,10.2136771,138.56,138.46,25.080604]
[1764131552317,2.04273542,138.5,138.46,25.080604]
[1764131552596,2.04273542,138.5,138.47,0.68]
[1764131552973,2.04273542,138.5,138.47,9.48994492]
[1764131553497,2.04273542,138.5,138.48,0.68]
[1764131554071,2.04273542,138.5,138.46,0.88]
[1764131554072,0.56,138.5,138.46,0.88]
[1764131554270,11.16267194,138.52,138.47,0.68]
[1764131554587,2.04273542,138.49,138.47,0.68]
[1764131555173,2.04273542,138.49,138.45,3.18]
[1764131555366,2.04273542,138.49,138.46,0.14216157]
[1764131557088,2.04273542,138.49,138.46,8.95210649]
[1764131557286,2.04273542,138.49,138.46,9.63210649]
[1764131557493,3.18,138.52,138.47,0.68]
[1764131557683,2.04273542,138.51,138.47,0.68]
[1764131558379,2.04273542,138.5,138.47,0.68]
[1764131558586,3.19150876,138.5,138.47,0.68]
[1764131561392,3.19150876,138.49,138.46,16.17436593]
[1764131561598,3.19150876,138.49,138.46,8.95210649]
[1764131561771,3.19150876,138.49,138.46,9.63210649]
[1764131562398,3.19150876,138.48,138.46,8.95210649]
[1764131563200,3.19150876,138.49,138.46,8.95210649]
[1764131564395,106.59150876,138.5,138.46,8.95210649]
[1764131564589,106.59150876,138.5,138.46,9.62210649]
[1764131565000,106.59150876,138.5,138.46,16.84440585]
[1764131565200,106.59150876,138.5,138.46,16.17440585]
[1764131565503,106.59150876,138.5,138.47,0.67]
[1764131565504,103.4,138.5,138.47,0.67]
[1764131566702,106.59150876,138.5,138.47,0.67]
[1764131567100,103.4,138.5,138.48,8.95210649]
[1764131569819,103.4,138.5,138.48,16.1731879]
[1764131570003,103.4,138.5,138.49,9.62210649]
[1764131570198,109.77150876,138.54,138.5,8.95210649]
[1764131570405,103.4,138.53,138.5,8.95210649]
[1764131570606,103.4,138.53,138.5,0.81216157]
[1764131570993,3.19150876,138.51,138.48,0.14216157]
[1764131571198,3.19150876,138.52,138.49,8.80994492]
[1764131573023,3.19150876,138.52,138.49,7.22066032]
[1764131573217,3.19150876,138.52,138.49,7.89066032]
[1764131573936,106.59150876,138.53,138.5,0.67]
[1764131574413,103.4,138.53,138.51,8.95210649]
[1764131574617,103.4,138.53,138.52,0.67]
[1764131576523,103.4,138.53,138.51,8.95210649]
[1764131576903,103.4,138.53,138.51,9.62210649]
[1764131577117,103.4,138.53,138.51,16.84172966]
[1764131582034,106.59150876,138.53,138.5,7.22002934]
[1764131582205,3.89150876,138.52,138.49,16.17278266]
[1764131583323,3.89150876,138.52,138.49,16.84278266]
[1764131583635,103.4,138.53,138.5,0.67]
[1764131583931,103.4,138.53,138.51,8.95210649]
[1764131584134,103.4,138.53,138.52,0.67]
[1764131585335,103.4,138.53,138.52,7.88917412]
[1764131585716,103.4,138.53,138.52,7.21917412]
[1764131586537,103.4,138.53,138.52,7.88917412]
[1764131586936,103.4,138.53,138.52,7.21917412]
[1764131588040,103.4,138.53,138.51,16.84167619]
[1764131590731,103.4,138.53,138.51,16.17167619]
[1764131590933,16.308864,138.57,138.51,16.17167619]
[1764131590934,104.1,138.59,138.53,8.80994492]
[1764131591234,107.29150876,138.59,138.55,0.14216157]
[1764131591439,3.19150876,138.56,138.53,8.95210649]
[1764131591742,6.37150876,138.56,138.53,8.95210649]
[1764131591910,7.07150876,138.56,138.53,8.95210649]
[1764131592110,6.37150876,138.56,138.52,0.67]
[1764131592325,0.7,138.55,138.52,8.95210649]
[1764131592838,0.7,138.55,138.53,7.21865299]
[1764131595241,0.7,138.55,138.52,16.84118843]
[1764131595449,0.7,138.55,138.5,7.2202166]
[1764131595450,3.19150876,138.53,138.5,7.2202166]
[1764131595650,6.37150876,138.52,138.48,9.48994492]
[1764131596152,3.88,138.52,138.49,0.14216157]
[1764131597356,3.88,138.52,138.49,7.36248074]
[1764131600978,3.19150876,138.5,138.47,8.95210649]
[1764131601124,3.89150876,138.51,138.47,16.85367841]
[1764131601321,0.7,138.5,138.47,16.85367841]
[1764131601820,0.7,138.5,138.47,20.04518717]
[1764131607440,103.4,138.51,138.47,19.36518717]
[1764131607757,104.1,138.51,138.48,7.90120277]
[1764131608257,0.7,138.5,138.48,7.22120277]
[1764131609557,103.4,138.51,138.48,7.22120277]
[1764131610050,0.7,138.5,138.48,7.22120277]
[1764131611259,0.7,138.5,138.47,8.95210649]
[1764131612246,0.7,138.5,138.47,16.85367009]
[1764131615986,106.58,138.49,138.46,8.95210649]
[1764131616149,106.58,138.49,138.46,9.48994492]
[1764131616356,107.28,138.49,138.46,9.48994492]
[1764131617747,107.28,138.49,138.46,16.71203329]
[1764131619267,106.58,138.49,138.46,7.22208837]
[1764131619566,0.7,138.48,138.46,7.22208837]
[1764131619767,0.7,138.48,138.46,7.90208837]
[1764131619972,107.28,138.49,138.46,7.90208837]
[1764131621078,103.4,138.48,138.46,7.90208837]
[1764131621664,2.74275431,138.47,138.42,0.68]
[1764131621985,5.92275431,138.46,138.42,0.68]
[1764131622658,3.88,138.46,138.42,7.90427193]
[1764131622873,3.88,138.46,138.42,9.94702624]
[1764131623072,3.88,138.46,138.42,7.90427193]
[1764131623276,3.88,138.46,138.43,0.68]
[1764131623457,3.18,138.46,138.43,11.53269923]
[1764131624089,3.18,138.46,138.44,0.67]
[1764131625082,3.9,138.46,138.44,0.67]
[1764131625258,3.9,138.46,138.43,18.74614105]
[1764131626880,3.9,138.46,138.43,16.70338674]
[1764131628368,0.72,138.46,138.43,16.70338674]
[1764131628575,5.22275431,138.47,138.43,16.03338674]
[1764131628772,3.18,138.47,138.44,9.62210649]
[1764131629088,106.58,138.48,138.45,2.04275431]
[1764131629261,106.58,138.48,138.45,2.71275431]
[1764131629576,106.58,138.48,138.46,0.67]
[1764131630169,107.3,138.48,138.46,0.67]
[1764131631486,107.3,138.48,138.46,2.71275431]
[1764131631867,106.58,138.48,138.46,2.71275431]
[1764131632080,106.58,138.48,138.46,0.67]
[1764131633684,107.3,138.48,138.46,0.67]
[1764131637272,106.58,138.48,138.46,0.67]
[1764131639287,103.4,138.48,138.46,9.93503527]
[1764131639483,103.4,138.48,138.47,2.71275431]
[1764131640058,103.4,138.48,138.47,0.67]
[1764131640575,103.4,138.48,138.46,9.93503527]
[1764131643580,103.4,138.48,138.46,9.26503527]
[1764131643789,103.4,138.48,138.47,2.70275431]
[1764131645092,103.4,138.48,138.46,7.22228096]
[1764131645391,2.71275431,138.47,138.4,16.308864]
[1764131645584,3.18,138.46,138.39,2.70275431]
[1764131645768,13.1151628,138.46,138.4,2.04275431]
[1764131645974,13.1151628,138.46,138.39,0.66]
[1764131645975,2.71275431,138.45,138.39,2.70275431]
[1764131646298,3.18,138.44,138.4,8.95210649]
[1764131646476,3.85,138.44,138.4,8.80994492]
[1764131646680,0.67,138.43,138.4,8.80994492]
[1764131647776,0.67,138.43,138.41,2.04275431]
[1764131647977,3.18,138.44,138.41,2.70275431]
[1764131648296,0.67,138.43,138.41,2.04275431]
[1764131649195,3.18,138.44,138.41,2.04275431]
[1764131649379,3.18,138.44,138.42,2.70275431]
[1764131649767,0.67,138.43,138.41,9.26762065]
[1764131650491,3.85,138.44,138.41,8.95210649]
[1764131650678,0.67,138.43,138.41,9.61210649]
[1764131650883,0.67,138.43,138.41,8.95210649]
[1764131652710,2.71275431,138.43,138.38,0.2]
[1764131653074,0.67,138.42,138.38,0.2]
[1764131653277,2.71275431,138.42,138.38,0.2]
[1764131653801,0.67,138.41,138.38,0.2]
[1764131654186,3.85,138.41,138.38,0.2]
[1764131654387,0.66,138.4,138.38,0.2]
[1764131657194,3.18,138.43,138.39,2.74275431]
[1764131657408,3.84,138.43,138.4,2.04275431]
[1764131657583,3.84,138.43,138.4,2.74275431]
[1764131659300,3.84,138.43,138.4,9.96812932]
[1764131659804,103.4,138.42,138.4,9.96812932]
[1764131660892,103.4,138.42,138.4,2.74275431]
[1764131661082,103.4,138.42,138.4,9.96808492]
[1764131662111,104.06,138.42,138.4,2.04275431]
[1764131662796,103.4,138.42,138.4,9.96808468]
[1764131664802,104.06,138.42,138.4,9.26808468]
[1764131665311,103.4,138.42,138.4,9.96808468]
[1764131665605,103.4,138.42,138.41,11.6948608]
[1764131665789,0.66,138.46,138.42,8.95210649]
[1764131665790,106.58,138.45,138.42,8.95210649]
[1764131665982,106.58,138.45,138.43,2.74275431]
[1764131666507,107.24,138.45,138.42,9.65210649]
[1764131666812,107.24,138.45,138.43,2.04275431]
[1764131667193,107.24,138.45,138.42,11.6948608]
[1764131667396,107.24,138.45,138.42,18.9189158]
[1764131670715,3.84,138.45,138.42,18.9189158]
[1764131671489,107.24,138.45,138.42,18.9189158]
[1764131672413,0.66,138.44,138.42,8.95210649]
[1764131677915,0.66,138.44,138.42,10.9948608]
[1764131678422,0.66,138.44,138.42,11.6948608]
[1764131678616,106.58,138.45,138.42,11.6948608]
[1764131678808,0.66,138.44,138.42,11.6948608]